[Event "EYTCC U18 Girls 2019"]
[Site "Pardubice"]
[Date "2019.07.13"]
[Round "3.42"]
[White "Rahulan, Thivyaa"]
[Black "Lhotska, Anna"]
[Result "0-1"]
[ECO "B90"]
[WhiteElo "1878"]
[BlackElo "1922"]
[Annotator "NA"]
[PlyCount "88"]
[EventDate "2019.07.11"]
[EventType "swiss"]
[EventCountry "CZE"]
[SourceTitle "playchess.com"]
[Source "ChessBase"]
[SourceQuality "1"]
[WhiteTeam "England"]
[BlackTeam "Czech Republic"]
[WhiteTeamCountry "ENG"]
[BlackTeamCountry "CZE"]
[TimeControl "40/5400+30:1800+30"]

1. e4 {[%emt 0:00:00]} c5 {[%emt 0:00:00]} 2. Nf3 {[%emt 0:00:00]} d6 {[%emt 0:00:00]} 3. d4 {[%emt 0:00:04]} cxd4 {[%emt 0:00:00]} 4. Nxd4 {[%emt 0:00:22]} Nf6 {[%emt 0:00:05]} 5. Nc3 {[%emt 0:00:11]} a6 {[%emt 0:00:06]} 6. f3 {[%emt 0:00:43]} e5 {[%emt 0:02:24]} 7. Nb3 {[%emt 0:00:19]} Be7 {[%emt 0:00:11]} 8. Be3 {[%emt 0:01:37]} Be6 {[%emt 0:01:13]} 9. Qd2 {[%emt 0:00:44]} Nbd7 {[%emt 0:06:13]} 10. O-O-O {[%emt 0:07:42]} b5 {[%emt 0:01:33]} 11. g4 {[%emt 0:03:30]} Nb6 {[%emt 0:06:20]} 12. g5 {[%emt 0:06:05]} Nfd7 {[%emt 0:02:21]} 13. Na5 {[%emt 0:09:04]} Qc7 {[%emt 0:04:17]} 14. Nd5 {[%emt 0:05:08]} Nxd5 {[%emt 0:08:46]} 15. exd5 {[%emt 0:00:25]} Bf5 {[%emt 0:00:28]} 16. Nc6 {[%emt 0:05:35]} Rc8 {[%emt 0:01:28]} 17. Bd3 {[%emt 0:12:11]} Bg6 {[%emt 0:08:39]} 18. h4 {[%emt 0:05:35]} Nb8 {[%emt 0:06:26]} 19. Nxb8 {[%emt 0:00:36]} Rxb8 {[%emt 0:00:52]} 20. h5 {[%emt 0:01:21]} Bxd3 {[%emt 0:00:33]} 21. Qxd3 {[%emt 0:00:22]} Rc8 {[%emt 0:06:08]} 22. Kb1 {[%emt 0:17:09]} Qd7 {[%emt 0:13:23]} 23. Rdg1 {[%emt 0:06:00]} f6 {[%emt 0:10:14]} 24. gxf6 {[%emt 0:01:45]} Bxf6 {[%emt 0:00:24]} 25. Rg2 {[%emt 0:02:59]} Qf7 {[%emt 0:02:29]} 26. Qf5 {[%emt 0:02:55]} Qd7 {[%emt 0:01:13]} 27. Qd3 {[%emt 0:00:23]} Rc4 {[%emt 0:04:52]} 28. b3 {[%emt 0:02:42]} Rh4 {[%emt 0:02:45]} 29. Rxh4 {[%emt 0:01:45]} Bxh4 {[%emt 0:00:01]} 30. Qe4 {[%emt 0:00:58]} Bf6 {[%emt 0:00:53]} 31. Bg5 {[%emt 0:02:37]} O-O {[%emt 0:09:08]} 32. h6 {[%emt 0:03:28]} g6 {[%emt 0:00:50]} 33. Qe3 {[%emt 0:01:13]} Bxg5 {[%emt 0:00:40]} 34. Qxg5 {[%emt 0:00:48]} Rxf3 {[%emt 0:00:23]} 35. Qh5 {[%emt 0:00:30]} Qf5 {[%emt 0:00:34]} 36. Qh4 {[%emt 0:00:20]} Qf6 {[%emt 0:00:35]} 37. Qg4 {[%emt 0:00:20]} Rf1+ {[%emt 0:00:23]} 38. Kb2 {[%emt 0:00:06]} e4+ {[%emt 0:00:12]} 39. c3 {[%emt 0:00:26]} Qf5 {[%emt 0:00:38]} 40. Qe2 {[%emt 0:01:24]} Rf3 {[%emt 0:00:28]} 41. Qd2 {[%emt 0:30:34]} e3 {[%emt 0:31:10]} 42. Qd4 {[%emt 0:00:00]} Qf6 {[%emt 0:00:00]} 43. Qxf6 {[%emt 0:00:00]} Rxf6 {[%emt 0:00:00]} 44. Kc1 {[%emt 0:00:00]} Rf1+ {[%emt 0:00:00]} 0-1

[Event "EYTCC U18 Girls 2019"]
[Site "Pardubice"]
[Date "2019.07.14"]
[Round "4.25"]
[White "Salimova, Nurgyul"]
[Black "Sahin, Hayrun Nisa"]
[Result "1-0"]
[ECO "B76"]
[WhiteElo "2416"]
[BlackElo "1772"]
[Annotator "NA"]
[PlyCount "73"]
[EventDate "2019.07.11"]
[EventType "swiss"]
[EventCountry "CZE"]
[SourceTitle "playchess.com"]
[Source "ChessBase"]
[SourceQuality "1"]
[WhiteTeam "Bulgaria"]
[BlackTeam "Turkey"]
[WhiteTeamCountry "BUL"]
[BlackTeamCountry "TUR"]
[TimeControl "40/5400+30:1800+30"]

1. e4 {[%emt 0:00:00]} c5 {[%emt 0:00:00]} 2. Nf3 {[%emt 0:00:00]} d6 {[%emt 0:00:07]} 3. d4 {[%emt 0:00:00]} cxd4 {[%emt 0:00:05]} 4. Nxd4 {[%emt 0:00:00]} Nf6 {[%emt 0:00:04]} 5. Nc3 {[%emt 0:00:11]} g6 {[%emt 0:00:07]} 6. Be3 {[%emt 0:00:22]} Bg7 {[%emt 0:00:06]} 7. f3 {[%emt 0:00:16]} O-O {[%emt 0:00:05]} 8. Qd2 {[%emt 0:01:04]} Bd7 {[%emt 0:00:12]} 9. g4 {[%emt 0:02:14]} Nc6 {[%emt 0:00:10]} 10. h4 {[%emt 0:07:34]} Rc8 {[%emt 0:02:45]} 11. h5 {[%emt 0:02:03]} Ne5 {[%emt 0:01:11]} 12. O-O-O {[%emt 0:17:26]} Qa5 {[%emt 0:01:15]} 13. Nb3 {[%emt 0:24:05]} Qc7 {[%emt 0:04:21]} 14. Be2 {[%emt 0:04:20]} a5 {[%emt 0:03:18]} 15. h6 {[%emt 0:11:33]} Bh8 {[%emt 0:10:36]} 16. g5 {[%emt 0:00:11]} a4 {[%emt 0:05:00]} 17. gxf6 {[%emt 0:05:21]} axb3 {[%emt 0:01:05]} 18. fxe7 {[%emt 0:00:46]} Rfe8 {[%emt 0:01:20]} 19. cxb3 {[%emt 0:00:19]} Qa5 {[%emt 0:24:23]} 20. Kb1 {[%emt 0:01:59]} Ra8 {[%emt 0:00:49]} 21. a3 {[%emt 0:00:51]} Nc6 {[%emt 0:03:03]} 22. Nd5 {[%emt 0:01:34]} Be6 {[%emt 0:08:51]} 23. Qxa5 {[%emt 0:05:20]} Rxa5 {[%emt 0:01:36]} 24. Bb6 {[%emt 0:04:16]} Rxd5 {[%emt 0:02:44]} 25. exd5 {[%emt 0:00:07]} Bf5+ {[%emt 0:00:04]} 26. Ka2 {[%emt 0:04:23]} Rxe7 {[%emt 0:04:29]} 27. Bb5 {[%emt 0:01:50]} Ne5 {[%emt 0:00:18]} 28. Bd8 {[%emt 0:00:51]} Kf8 {[%emt 0:01:23]} 29. Bxe7+ {[%emt 0:00:15]} Kxe7 {[%emt 0:00:01]} 30. Rhe1 {[%emt 0:00:47]} g5 {[%emt 0:00:02]} 31. Bd3 {[%emt 0:02:18]} Kf6 {[%emt 0:00:36]} 32. Be4 {[%emt 0:01:02]} Bxe4 {[%emt 0:00:25]} 33. Rxe4 {[%emt 0:00:27]} Kf5 {[%emt 0:00:29]} 34. Rb4 {[%emt 0:00:09]} Nxf3 {[%emt 0:00:36]} 35. Rxb7 {[%emt 0:00:06]} g4 {[%emt 0:01:28]} 36. Rxf7+ {[%emt 0:00:11]} Kg6 {[%emt 0:00:29]} 37. Rxf3 {[%emt 0:01:25]} 1-0

[Event "EYTCC U18 Girls 2019"]
[Site "Pardubice"]
[Date "2019.07.14"]
[Round "4.26"]
[White "Aydin, Gulenay"]
[Black "Antova, Gabriela"]
[Result "0-1"]
[ECO "B90"]
[WhiteElo "1934"]
[BlackElo "2257"]
[Annotator "NA"]
[PlyCount "96"]
[EventDate "2019.07.11"]
[EventType "swiss"]
[EventCountry "CZE"]
[SourceTitle "playchess.com"]
[Source "ChessBase"]
[SourceQuality "1"]
[WhiteTeam "Turkey"]
[BlackTeam "Bulgaria"]
[WhiteTeamCountry "TUR"]
[BlackTeamCountry "BUL"]
[TimeControl "40/5400+30:1800+30"]

1. e4 {[%emt 0:00:00]} c5 {[%emt 0:00:00]} 2. Nf3 {[%emt 0:00:00]} d6 {[%emt 0:00:00]} 3. d4 {[%emt 0:00:00]} cxd4 {[%emt 0:00:00]} 4. Nxd4 {[%emt 0:00:00]} Nf6 {[%emt 0:00:00]} 5. Nc3 {[%emt 0:00:00]} a6 {[%emt 0:00:00]} 6. f3 {[%emt 0:00:00]} e6 {[%emt 0:00:01]} 7. Be3 {[%emt 0:00:00]} b5 {[%emt 0:00:14]} 8. Qd2 {[%emt 0:00:07]} Nbd7 {[%emt 0:00:08]} 9. g4 {[%emt 0:02:41]} b4 {[%emt 0:01:52]} 10. Na4 {[%emt 0:05:28]} h6 {[%emt 0:03:20]} 11. O-O-O {[%emt 0:05:43]} Ne5 {[%emt 0:00:32]} 12. Qxb4 {[%emt 0:10:08]} Bd7 {[%emt 0:00:33]} 13. Bf4 {[%emt 0:22:17]} Ng6 {[%emt 0:04:01]} 14. Be3 {[%emt 0:19:23]} Rb8 {[%emt 0:38:26]} 15. Qa3 {[%emt 0:04:50]} Qa5 {[%emt 0:01:42]} 16. Nc3 {[%emt 0:02:22]} Qxa3 {[%emt 0:00:13]} 17. bxa3 {[%emt 0:00:02]} d5 {[%emt 0:00:12]} 18. exd5 {[%emt 0:05:52]} Bxa3+ {[%emt 0:00:08]} 19. Kd2 {[%emt 0:00:02]} Bb4 {[%emt 0:16:06]} 20. dxe6 {[%emt 0:05:16]} fxe6 {[%emt 0:00:06]} 21. Bd3 {[%emt 0:04:34]} Ne5 {[%emt 0:01:04]} 22. Rb1 {[%emt 0:05:02]} Nd5 {[%emt 0:04:43]} 23. Rxb4 {[%emt 0:01:13]} Nxb4 {[%emt 0:00:34]} 24. Bf4 {[%emt 0:01:14]} Nbxd3 {[%emt 0:00:06]} 25. cxd3 {[%emt 0:00:21]} Rb2+ {[%emt 0:00:05]} 26. Ke3 {[%emt 0:01:03]} Nc6 {[%emt 0:03:07]} 27. Nxc6 {[%emt 0:01:21]} Bxc6 {[%emt 0:00:02]} 28. Ne4 {[%emt 0:00:18]} O-O {[%emt 0:06:46]} 29. h4 {[%emt 0:01:19]} Rxa2 {[%emt 0:04:30]} 30. g5 {[%emt 0:00:48]} h5 {[%emt 0:01:55]} 31. Rc1 {[%emt 0:00:51]} Bxe4 {[%emt 0:02:00]} 32. fxe4 {[%emt 0:00:02]} Ra5 {[%emt 0:03:22]} 33. Bd6 {[%emt 0:00:55]} Rd8 {[%emt 0:01:02]} 34. e5 {[%emt 0:00:42]} Kh7 {[%emt 0:01:13]} 35. g6+ {[%emt 0:01:42]} Kxg6 {[%emt 0:02:15]} 36. Rg1+ {[%emt 0:01:26]} Kh7 {[%emt 0:02:09]} 37. Bc7 {[%emt 0:00:26]} Rdd5 {[%emt 0:00:01]} 38. Bxa5 {[%emt 0:00:41]} Rxe5+ {[%emt 0:00:00]} 39. Kd4 {[%emt 0:00:42]} Rxa5 {[%emt 0:00:03]} 40. Re1 {[%emt 0:00:31]} Ra4+ {[%emt 0:02:22]} 41. Kc5 {[%emt 0:12:00]} Rxh4 {[%emt 0:03:19]} 42. Rxe6 {[%emt 0:00:05]} Rh1 {[%emt 0:01:29]} 43. Rxa6 {[%emt 0:03:44]} h4 {[%emt 0:01:10]} 44. d4 {[%emt 0:00:35]} h3 {[%emt 0:02:16]} 45. Ra3 {[%emt 0:01:37]} g5 {[%emt 0:01:33]} 46. Kd5 {[%emt 0:05:05]} Kg6 {[%emt 0:02:19]} 47. Ra2 {[%emt 0:04:48]} g4 {[%emt 0:00:41]} 48. Ra8 {[%emt 0:01:09]} Kg5 {[%emt 0:00:56]} 0-1

[Event "EYTCC U18 Girls 2019"]
[Site "Pardubice"]
[Date "2019.07.14"]
[Round "4.27"]
[White "Muetsch, Annmarie"]
[Black "Radeva, Viktoria"]
[Result "1/2-1/2"]
[ECO "C07"]
[WhiteElo "2266"]
[BlackElo "2247"]
[Annotator "NA"]
[PlyCount "96"]
[EventDate "2019.07.11"]
[EventType "swiss"]
[EventCountry "CZE"]
[SourceTitle "playchess.com"]
[Source "ChessBase"]
[SourceQuality "1"]
[WhiteTeam "Germany"]
[BlackTeam "Bulgaria"]
[WhiteTeamCountry "GER"]
[BlackTeamCountry "BUL"]
[TimeControl "40/5400+30:1800+30"]

1. e4 {[%emt 0:00:00]} e6 {[%emt 0:00:00]} 2. d4 {[%emt 0:00:00]} d5 {[%emt 0:00:00]} 3. Nd2 {[%emt 0:00:00]} c5 {[%emt 0:00:00]} 4. exd5 {[%emt 0:00:00]} Qxd5 {[%emt 0:00:00]} 5. Ngf3 {[%emt 0:00:07]} cxd4 {[%emt 0:00:01]} 6. Bc4 {[%emt 0:00:04]} Qd6 {[%emt 0:00:08]} 7. O-O {[%emt 0:00:10]} Nf6 {[%emt 0:00:05]} 8. Nb3 {[%emt 0:00:11]} Nc6 {[%emt 0:00:04]} 9. Nbxd4 {[%emt 0:00:06]} Nxd4 {[%emt 0:00:06]} 10. Nxd4 {[%emt 0:00:05]} Be7 {[%emt 0:00:05]} 11. c3 {[%emt 0:04:14]} O-O {[%emt 0:00:56]} 12. Qf3 {[%emt 0:01:41]} Qc7 {[%emt 0:02:02]} 13. Bb3 {[%emt 0:02:06]} Bd7 {[%emt 0:10:54]} 14. Bg5 {[%emt 0:15:49]} h6 {[%emt 0:15:14]} 15. Bh4 {[%emt 0:03:21]} Rfe8 {[%emt 0:07:10]} 16. Rfe1 {[%emt 0:05:45]} Rad8 {[%emt 0:07:31]} 17. h3 {[%emt 0:04:56]} Bc8 {[%emt 0:11:46]} 18. Rad1 {[%emt 0:06:07]} a6 {[%emt 0:02:18]} 19. Bc2 {[%emt 0:09:03]} Nd5 {[%emt 0:21:27]} 20. Bxe7 {[%emt 0:17:07]} Rxe7 {[%emt 0:06:37]} 21. Bb3 {[%emt 0:03:29]} Nf6 {[%emt 0:04:54]} 22. Qe3 {[%emt 0:05:34]} e5 {[%emt 0:03:58]} 23. Nf3 {[%emt 0:03:59]} Rde8 {[%emt 0:00:23]} 24. Nd2 {[%emt 0:06:01]} Be6 {[%emt 0:02:58]} 25. Ne4 {[%emt 0:03:29]} Nxe4 {[%emt 0:00:39]} 26. Qxe4 {[%emt 0:00:06]} Bxb3 {[%emt 0:00:29]} 27. axb3 {[%emt 0:00:05]} Rd8 {[%emt 0:02:45]} 28. Rd5 {[%emt 0:01:21]} Rxd5 {[%emt 0:00:05]} 29. Qxd5 {[%emt 0:00:04]} Kh7 {[%emt 0:00:29]} 30. b4 {[%emt 0:01:28]} f6 {[%emt 0:00:57]} 31. Rd1 {[%emt 0:01:41]} e4 {[%emt 0:00:51]} 32. Qf5+ {[%emt 0:02:18]} Kh8 {[%emt 0:00:33]} 33. Qd5 {[%emt 0:02:23]} Kh7 {[%emt 0:00:19]} 34. Qf5+ {[%emt 0:00:38]} Kg8 {[%emt 0:00:23]} 35. Qd5+ {[%emt 0:00:28]} Kf8 {[%emt 0:00:15]} 36. Rd4 {[%emt 0:01:59]} Re5 {[%emt 0:00:47]} 37. Qd7 {[%emt 0:01:40]} Qxd7 {[%emt 0:00:03]} 38. Rxd7 {[%emt 0:00:06]} Re7 {[%emt 0:00:01]} 39. Rd8+ {[%emt 0:00:34]} Kf7 {[%emt 0:00:06]} 40. Kf1 {[%emt 0:00:20]} Ke6 {[%emt 0:00:39]} 41. Ke2 {[%emt 0:30:12]} Ke5 {[%emt 0:30:55]} 42. Rd4 {[%emt 0:00:00]} Rc7 {[%emt 0:00:00]} 43. g3 {[%emt 0:00:00]} f5 {[%emt 0:00:00]} 44. Rd8 {[%emt 0:00:00]} Re7 {[%emt 0:00:00]} 45. Rd4 {[%emt 0:00:00]} Rc7 {[%emt 0:00:00]} 46. Rd8 Re7 {[%emt 0:00:00]} 47. Rd4 {[%emt 0:00:00]} Rc7 {[%emt 0:00:24]} 48. Rd8 Re7 {[%emt 0:00:03]} 1/2-1/2

[Event "EYTCC U18 Girls 2019"]
[Site "Pardubice"]
[Date "2019.07.14"]
[Round "4.28"]
[White "Krasteva, Beloslava"]
[Black "Schneider, Jana"]
[Result "0-1"]
[ECO "E48"]
[WhiteElo "2327"]
[BlackElo "2216"]
[Annotator "NA"]
[PlyCount "46"]
[EventDate "2019.07.11"]
[EventType "swiss"]
[EventCountry "CZE"]
[SourceTitle "playchess.com"]
[Source "ChessBase"]
[SourceQuality "1"]
[WhiteTeam "Bulgaria"]
[BlackTeam "Germany"]
[WhiteTeamCountry "BUL"]
[BlackTeamCountry "GER"]
[TimeControl "40/5400+30:1800+30"]

1. d4 {[%emt 0:00:00]} Nf6 {[%emt 0:00:00]} 2. c4 {[%emt 0:00:00]} e6 {[%emt 0:00:00]} 3. Nc3 {[%emt 0:00:16]} Bb4 {[%emt 0:00:00]} 4. e3 {[%emt 0:00:14]} O-O {[%emt 0:00:05]} 5. Bd3 {[%emt 0:00:14]} d5 {[%emt 0:00:13]} 6. cxd5 {[%emt 0:00:13]} exd5 {[%emt 0:00:10]} 7. Nge2 {[%emt 0:00:14]} Re8 {[%emt 0:00:14]} 8. Bd2 {[%emt 0:00:45]} c5 {[%emt 0:00:20]} 9. a3 {[%emt 0:00:35]} Bxc3 {[%emt 0:00:11]} 10. Bxc3 {[%emt 0:00:08]} c4 {[%emt 0:01:40]} 11. Bc2 {[%emt 0:00:09]} Bg4 {[%emt 0:00:13]} 12. O-O {[%emt 0:00:55]} Nc6 {[%emt 0:00:42]} 13. b3 {[%emt 0:01:19]} Na5 {[%emt 0:01:38]} 14. Bxa5 {[%emt 0:01:16]} Qxa5 {[%emt 0:00:13]} 15. bxc4 {[%emt 0:00:14]} dxc4 {[%emt 0:01:13]} 16. f3 {[%emt 0:00:21]} Nd5 {[%emt 0:09:37]} 17. fxg4 {[%emt 0:10:35]} Nxe3 {[%emt 0:00:09]} 18. Qc1 {[%emt 0:03:52]} Qd5 {[%emt 0:08:14]} 19. Rf2 {[%emt 0:03:38]} Nxg4 {[%emt 0:00:43]} 20. Rf4 {[%emt 0:17:36]} Rxe2 {[%emt 0:04:13]} 21. Rxg4 {[%emt 0:01:10]} h5 {[%emt 0:00:15]} 22. Rg3 {[%emt 0:06:34]} Qxd4+ {[%emt 0:00:47]} 23. Kh1 {[%emt 0:00:21]} Rxc2 {[%emt 0:00:29]} 0-1

[Event "EYTCC U18 Girls 2019"]
[Site "Pardubice"]
[Date "2019.07.14"]
[Round "4.29"]
[White "Kucharska, Honorata"]
[Black "Ferkova, Dominika"]
[Result "1/2-1/2"]
[ECO "B12"]
[WhiteElo "2054"]
[BlackElo "2009"]
[Annotator "NA"]
[PlyCount "66"]
[EventDate "2019.07.11"]
[EventType "swiss"]
[EventCountry "CZE"]
[SourceTitle "playchess.com"]
[Source "ChessBase"]
[SourceQuality "1"]
[WhiteTeam "Poland"]
[BlackTeam "Slovakia"]
[WhiteTeamCountry "POL"]
[BlackTeamCountry "SVK"]
[TimeControl "40/5400+30:1800+30"]

1. e4 {[%emt 0:00:00]} c6 {[%emt 0:00:02]} 2. d4 {[%emt 0:00:05]} d5 {[%emt 0:00:08]} 3. e5 {[%emt 0:00:28]} Bf5 {[%emt 0:00:06]} 4. h4 {[%emt 0:00:16]} h5 {[%emt 0:00:08]} 5. Bd3 {[%emt 0:00:16]} Bxd3 {[%emt 0:00:08]} 6. Qxd3 {[%emt 0:00:12]} Qa5+ {[%emt 0:00:29]} 7. c3 {[%emt 0:01:32]} e6 {[%emt 0:07:11]} 8. Ne2 {[%emt 0:03:11]} Qa6 {[%emt 0:03:34]} 9. Qf3 {[%emt 0:01:54]} c5 {[%emt 0:10:42]} 10. O-O {[%emt 0:05:39]} Nc6 {[%emt 0:04:57]} 11. Nd2 {[%emt 0:07:14]} cxd4 {[%emt 0:06:13]} 12. cxd4 {[%emt 0:02:08]} Nge7 {[%emt 0:00:44]} 13. Nb3 {[%emt 0:02:37]} Nf5 {[%emt 0:00:50]} 14. Bg5 {[%emt 0:01:26]} Be7 {[%emt 0:03:18]} 15. Bxe7 {[%emt 0:07:24]} Ncxe7 {[%emt 0:10:11]} 16. g3 {[%emt 0:02:54]} Nc6 {[%emt 0:06:12]} 17. Rfd1 {[%emt 0:02:07]} Qb6 {[%emt 0:07:30]} 18. Rac1 {[%emt 0:04:32]} Rc8 {[%emt 0:04:16]} 19. Rc3 {[%emt 0:04:57]} g6 {[%emt 0:16:11]} 20. Qf4 {[%emt 0:06:47]} Qd8 {[%emt 0:04:38]} 21. Rdc1 {[%emt 0:02:38]} O-O {[%emt 0:00:58]} 22. Qd2 {[%emt 0:05:19]} Qd7 {[%emt 0:03:40]} 23. a3 {[%emt 0:04:02]} b6 {[%emt 0:00:36]} 24. Qd3 {[%emt 0:09:43]} Nce7 {[%emt 0:01:02]} 25. Nd2 {[%emt 0:01:57]} Rxc3 {[%emt 0:01:02]} 26. Nxc3 {[%emt 0:00:32]} Nc6 {[%emt 0:01:14]} 27. Ne2 {[%emt 0:04:06]} Rc8 {[%emt 0:02:05]} 28. b4 {[%emt 0:01:07]} a5 {[%emt 0:04:34]} 29. b5 {[%emt 0:01:46]} Nce7 {[%emt 0:00:01]} 30. Rxc8+ {[%emt 0:02:11]} Qxc8 {[%emt 0:00:01]} 31. Nc3 {[%emt 0:00:40]} Qc7 {[%emt 0:00:41]} 32. Kg2 {[%emt 0:01:09]} Nc8 {[%emt 0:00:20]} 33. Ne2 {[%emt 0:05:32]} Nce7 {[%emt 0:00:43]} 1/2-1/2

[Event "EYTCC U18 Girls 2019"]
[Site "Pardubice"]
[Date "2019.07.14"]
[Round "4.30"]
[White "Sankova, Stella"]
[Black "Malicka, Maria"]
[Result "1-0"]
[ECO "A06"]
[WhiteElo "1997"]
[BlackElo "2115"]
[Annotator "NA"]
[PlyCount "49"]
[EventDate "2019.07.11"]
[EventType "swiss"]
[EventCountry "CZE"]
[SourceTitle "playchess.com"]
[Source "ChessBase"]
[SourceQuality "1"]
[WhiteTeam "Slovakia"]
[BlackTeam "Poland"]
[WhiteTeamCountry "SVK"]
[BlackTeamCountry "POL"]
[TimeControl "40/5400+30:1800+30"]

1. Nf3 {[%emt 0:00:00]} d5 {[%emt 0:00:00]} 2. c4 {[%emt 0:00:00]} e6 {[%emt 0:00:00]} 3. b3 {[%emt 0:00:10]} Nf6 {[%emt 0:00:12]} 4. Bb2 {[%emt 0:00:10]} Be7 {[%emt 0:00:19]} 5. g3 {[%emt 0:00:05]} O-O {[%emt 0:00:36]} 6. Bg2 {[%emt 0:00:04]} b6 {[%emt 0:05:13]} 7. O-O {[%emt 0:00:11]} Bb7 {[%emt 0:00:26]} 8. e3 {[%emt 0:00:36]} c5 {[%emt 0:01:47]} 9. Qe2 {[%emt 0:00:12]} Nc6 {[%emt 0:02:36]} 10. Rd1 {[%emt 0:00:18]} Rc8 {[%emt 0:12:16]} 11. Nc3 {[%emt 0:01:16]} dxc4 {[%emt 0:03:42]} 12. bxc4 {[%emt 0:00:14]} Qc7 {[%emt 0:00:13]} 13. Rac1 {[%emt 0:01:56]} Rfd8 {[%emt 0:00:15]} 14. d4 {[%emt 0:00:16]} cxd4 {[%emt 0:09:14]} 15. exd4 {[%emt 0:00:10]} Ba6 {[%emt 0:13:55]} 16. Nb5 {[%emt 0:04:50]} Qb8 {[%emt 0:02:49]} 17. Bh3 {[%emt 0:04:29]} Bxb5 {[%emt 0:14:33]} 18. cxb5 {[%emt 0:00:21]} Nb4 {[%emt 0:00:15]} 19. Bxe6 {[%emt 0:04:28]} Rxc1 {[%emt 0:02:33]} 20. Rxc1 {[%emt 0:03:01]} Nfd5 {[%emt 0:01:01]} 21. a3 {[%emt 0:21:34]} fxe6 {[%emt 0:06:02]} 22. Qxe6+ {[%emt 0:01:56]} Kh8 {[%emt 0:00:04]} 23. Ne5 {[%emt 0:06:23]} Rf8 {[%emt 0:00:33]} 24. axb4 {[%emt 0:04:43]} Qd6 {[%emt 0:00:41]} 25. Nf7+ {[%emt 0:01:15]} 1-0

[Event "EYTCC U18 Girls 2019"]
[Site "Pardubice"]
[Date "2019.07.14"]
[Round "4.31"]
[White "Sliwicka, Alicja"]
[Black "Lehaci, Miruna-Daria"]
[Result "1-0"]
[ECO "C17"]
[WhiteElo "2261"]
[BlackElo "2201"]
[Annotator "NA"]
[PlyCount "115"]
[EventDate "2019.07.11"]
[EventType "swiss"]
[EventCountry "CZE"]
[SourceTitle "playchess.com"]
[Source "ChessBase"]
[SourceQuality "1"]
[WhiteTeam "Poland"]
[BlackTeam "Romania"]
[WhiteTeamCountry "POL"]
[BlackTeamCountry "ROU"]
[TimeControl "40/5400+30:1800+30"]

1. e4 {[%emt 0:00:00]} e6 {[%emt 0:00:00]} 2. d4 {[%emt 0:00:00]} d5 {[%emt 0:00:00]} 3. Nc3 {[%emt 0:00:00]} Bb4 {[%emt 0:00:00]} 4. e5 {[%emt 0:00:00]} c5 {[%emt 0:00:00]} 5. Bd2 {[%emt 0:00:00]} Ne7 {[%emt 0:00:00]} 6. Nb5 {[%emt 0:00:17]} Bxd2+ {[%emt 0:02:36]} 7. Qxd2 {[%emt 0:00:10]} O-O {[%emt 0:00:37]} 8. c3 {[%emt 0:00:15]} b6 {[%emt 0:06:49]} 9. f4 {[%emt 0:05:12]} a6 {[%emt 0:04:23]} 10. Nd6 {[%emt 0:00:54]} Bd7 {[%emt 0:04:03]} 11. Bd3 {[%emt 0:05:54]} f6 {[%emt 0:09:50]} 12. Nf3 {[%emt 0:02:05]} Be8 {[%emt 0:05:45]} 13. O-O {[%emt 0:05:26]} Bg6 {[%emt 0:05:27]} 14. Bxg6 {[%emt 0:06:49]} Nxg6 {[%emt 0:01:38]} 15. f5 {[%emt 0:08:32]} exf5 {[%emt 0:10:19]} 16. dxc5 {[%emt 0:03:16]} Ne7 {[%emt 0:01:57]} 17. Nd4 {[%emt 0:02:07]} Qd7 {[%emt 0:02:57]} 18. N4xf5 {[%emt 0:02:49]} Nbc6 {[%emt 0:04:02]} 19. exf6 {[%emt 0:04:31]} Rxf6 {[%emt 0:03:36]} 20. Nxe7+ {[%emt 0:03:07]} Nxe7 {[%emt 0:00:07]} 21. Rxf6 {[%emt 0:00:48]} gxf6 {[%emt 0:00:05]} 22. Nc4 {[%emt 0:03:24]} Qc6 {[%emt 0:05:01]} 23. Nxb6 {[%emt 0:01:40]} Qxc5+ {[%emt 0:00:07]} 24. Qf2 {[%emt 0:00:40]} Qxf2+ {[%emt 0:00:10]} 25. Kxf2 {[%emt 0:00:05]} Rb8 {[%emt 0:00:36]} 26. Na4 {[%emt 0:00:29]} Kf7 {[%emt 0:02:52]} 27. Rd1 {[%emt 0:01:40]} Rb5 {[%emt 0:02:25]} 28. b3 {[%emt 0:04:49]} Nf5 {[%emt 0:04:18]} 29. Nb2 {[%emt 0:02:44]} Rc5 {[%emt 0:00:55]} 30. c4 {[%emt 0:03:46]} dxc4 {[%emt 0:00:34]} 31. Nxc4 {[%emt 0:00:07]} Ne7 {[%emt 0:04:35]} 32. Rd6 {[%emt 0:03:42]} Nc6 {[%emt 0:01:25]} 33. Rd7+ {[%emt 0:00:47]} Kg6 {[%emt 0:00:23]} 34. Ke3 {[%emt 0:05:15]} Ne5 {[%emt 0:01:22]} 35. Rd4 {[%emt 0:03:12]} h5 {[%emt 0:02:05]} 36. Nxe5+ {[%emt 0:01:02]} Rxe5+ {[%emt 0:00:08]} 37. Re4 {[%emt 0:01:57]} Rc5 {[%emt 0:01:11]} 38. Kd3 {[%emt 0:02:00]} Kf5 {[%emt 0:09:07]} 39. Rc4 {[%emt 0:04:58]} Re5 {[%emt 0:01:23]} 40. Ra4 {[%emt 0:03:58]} a5 {[%emt 0:00:34]} 41. a3 {[%emt 0:34:39]} Rd5+ {[%emt 0:31:05]} 42. Rd4 {[%emt 0:00:42]} Rc5 {[%emt 0:01:28]} 43. b4 {[%emt 0:05:23]} axb4 {[%emt 0:00:27]} 44. axb4 {[%emt 0:00:22]} Rc1 {[%emt 0:00:13]} 45. g3 {[%emt 0:02:25]} Rb1 {[%emt 0:02:18]} 46. Kc4 {[%emt 0:00:22]} Rc1+ {[%emt 0:00:00]} 47. Kd5 {[%emt 0:00:00]} Rc2 {[%emt 0:00:00]} 48. Rh4 {[%emt 0:00:00]} Rd2+ {[%emt 0:00:00]} 49. Kc6 {[%emt 0:00:00]} Kg6 {[%emt 0:00:00]} 50. b5 {[%emt 0:00:00]} Rc2+ {[%emt 0:00:00]} 51. Kb7 {[%emt 0:00:00]} Rb2 {[%emt 0:00:00]} 52. b6 {[%emt 0:00:00]} Kg5 {[%emt 0:00:00]} 53. Kc7 {[%emt 0:00:00]} Rc2+ {[%emt 0:00:00]} 54. Kb8 {[%emt 0:00:00]} f5 {[%emt 0:00:00]} 55. b7 {[%emt 0:00:00]} Rb2 {[%emt 0:00:00]} 56. Rc4 {[%emt 0:00:00]} Rxh2 {[%emt 0:00:00]} 57. Kc7 {[%emt 0:00:00]} Rb2 {[%emt 0:00:00]} 58. b8=Q {[%emt 0:00:00]} 1-0